bitfinex/quotes_ETHUSD_20250916
["timestamp","ask_amount","ask_price","bid_price","bid_amount"]
[1758043650955,2.22155875,4505.4,4505.3,5.8234]
[1758043653691,0.002,4505.4,4505.3,5.8224]
[1758043653869,0.002,4505.4,4505.3,6.40474]
[1758043657166,2.22155875,4505.4,4505.3,1.5378]
[1758043657475,2.22155875,4505.4,4505.3,1.0944]
[1758043657676,2.22155875,4505.4,4505.3,4.8934]
[1758043659102,2.22155875,4505.4,4505.3,5.3469]
[1758043659262,2.22155875,4505.4,4505.3,5.8196]
[1758043659463,0.002,4505.4,4505.3,5.8196]
[1758043659663,0.002,4505.4,4505.3,6.40166]
[1758043661900,2.22155875,4505.4,4505.3,6.40166]
[1758043662300,2.22155875,4505.4,4505.3,5.47446]
[1758043662597,2.22155875,4505.4,4505.3,6.40066]
[1758043662996,0.002,4505.4,4505.3,6.40066]
[1758043665612,2.22155875,4505.4,4505.3,1.67646]
[1758043665790,2.22155875,4505.4,4505.3,1.0944]
[1758043666191,0.002,4505.4,4505.3,4.8924]
[1758043667008,0.002,4505.4,4505.3,4.8934]
[1758043667312,0.002,4505.4,4505.3,5.3469]
[1758043668181,0.002,4505.4,4505.3,5.8196]
[1758043668410,0.002,4505.4,4505.3,6.4127]
[1758043670205,0.002,4505.4,4505.3,6.5231]
[1758043670415,0.002,4505.9,4505.4,0.792]
[1758043670738,0.002,4505.9,4505.8,5.92742512]
[1758043670913,0.002,4505.9,4505.8,11.71612512]
[1758043671127,0.002,4505.9,4505.8,13.85928763]
[1758043671828,0.002,4505.9,4505.8,14.85321456]
[1758043673785,0.002,4505.9,4505.8,29.35321456]
[1758043675815,0.002,4505.9,4505.8,25.55621456]
[1758043676115,0.002,4505.9,4505.8,29.35221456]
[1758043679525,0.002,4505.9,4505.8,23.33226251]
[1758043679853,0.002,4505.9,4505.8,29.24081456]
[1758043680453,0.002,4506.2,4505.9,0.792]
[1758043680609,0.002,4506.2,4506.1,3.792]
[1758043680808,0.002,4506.2,4506.1,4.0774]
[1758043681008,0.002,4506.2,4506.1,5.0002]
[1758043681310,0.002,4506.2,4506.1,8.3025]
[1758043681798,0.002,4506.2,4506.1,1.5075]
[1758043681959,0.002,4506.2,4506.1,4.587]
[1758043682159,0.002,4506.2,4506.1,5.64623747]
[1758043683046,0.002,4506.2,4506.1,5.93163747]
[1758043683243,0.002,4506.2,4506.1,6.36173747]
[1758043683712,0.002,4506.2,4506.1,5.93163747]
[1758043685015,0.002,4506.2,4506.1,6.36073747]
[1758043685572,0.002,4506.2,4506.1,6.85343747]
[1758043685945,0.002,4506.2,4506.1,9.85343747]
[1758043686145,0.002,4506.4,4506.3,0.792]
[1758043686325,0.002,4506.4,4506.3,7.60819115]
[1758043686652,0.002,4506.4,4506.3,8.7942]
[1758043686853,0.002,4506.4,4506.3,23.2942]
[1758043687908,0.01,4506.9,4506.5,0.792]
[1758043688110,0.01,4506.9,4506.8,0.792]
[1758043688314,0.01,4506.9,4506.8,6.291]
[1758043688617,0.01,4506.9,4506.8,26.80995205]
[1758043688942,0.5783,4506.9,4506.8,26.80995205]
[1758043689142,0.4793,4506.9,4506.8,29.02791086]
[1758043689378,0.01,4506.9,4506.8,14.81331086]
[1758043689646,0.01,4506.9,4506.8,15.84651086]
[1758043690349,0.002,4507.2,4506.9,0.792]
[1758043690549,0.002,4507.2,4507.1,0.792]
[1758043690758,0.002,4507.2,4507.1,1.1878]
[1758043690971,0.002,4507.2,4507.1,2.1106]
[1758043691622,0.002,4507.2,4507.1,5.9036]
[1758043695943,0.002,4507.2,4507.1,5.9026]
[1758043696154,0.002,4507.2,4507.1,7.42372031]
[1758043696771,0.002,4507.2,4507.1,6.50092031]
[1758043696940,0.002,4507.2,4507.1,6.21552031]
[1758043697448,0.002,4507.2,4507.1,6.50092031]
[1758043697664,0.002,4507.2,4507.1,3.63172031]
[1758043697981,0.002,4507.2,4507.1,7.44590752]
[1758043698280,0.01,4507.9,4507.1,7.42372031]
[1758043698484,0.01,4507.9,4507.8,6.81095205]
[1758043698669,0.01,4507.9,4507.8,12.30795205]
[1758043698873,0.01,4507.9,4507.8,12.70375205]
[1758043699172,0.01,4507.9,4507.8,13.62655205]
[1758043700779,0.4713,4508.7,4507.9,0.792]
[1758043701092,0.002,4508.7,4508.6,0.792]
[1758043701299,0.002,4508.7,4508.6,4.8684]
[1758043701878,0.002,4508.7,4508.6,5.7912]
[1758043702493,0.002,4508.7,4508.6,5.2985]
[1758043702676,0.002,4508.7,4508.6,0.792]
[1758043702865,0.4713,4508.7,4508.6,4.583]
[1758043703281,0.002,4508.7,4508.6,5.64319521]
[1758043704406,0.002,4508.7,4508.6,1.85219521]
[1758043704576,0.002,4508.7,4508.6,5.64319521]
[1758043704974,0.002,4508.7,4508.6,9.85669521]
[1758043705893,0.012,4508.9,4508.6,9.85669521]
[1758043706093,0.012,4508.9,4508.8,0.792]
[1758043706270,0.012,4508.9,4508.8,4.582]
[1758043706475,0.012,4508.9,4508.8,5.7955]
[1758043708064,0.012,4508.9,4508.8,8.01338502]
[1758043710469,0.012,4508.9,4508.8,11.01338502]
[1758043710665,0.012,4508.9,4508.8,13.16881184]
[1758043710871,0.012,4508.9,4508.8,12.25251184]
[1758043711070,0.012,4508.9,4508.8,13.27921184]
[1758043712422,0.012,4508.9,4508.8,8.27571184]
[1758043712599,0.111,4508.9,4508.8,6.8994]
[1758043712782,2.78223583,4508.9,4508.8,0.1104]
[1758043713112,2.78223583,4508.9,4506.3,1.0]
[1758043713113,2.21788502,4508.8,4508.7,1.704]
[1758043713406,2.74888502,4508.8,4508.7,4.781]
[1758043713707,2.84788502,4508.8,4508.7,3.989]
[1758043714076,0.5524,4508.8,4508.7,4.781]
[1758043714273,2.22984873,4508.9,4508.7,4.781]
[1758043714274,0.012,4508.9,4508.8,0.792]
[1758043714612,0.111,4508.9,4508.8,0.81417885]
[1758043714771,0.5644,4508.9,4508.8,4.581]
[1758043715705,0.012,4508.9,4508.8,4.8782]
[1758043715877,0.012,4508.9,4508.8,4.581]
[1758043716198,0.4654,4508.9,4508.8,4.581]
[1758043716401,0.4654,4508.9,4508.8,9.24278023]
[1758043716402,0.012,4508.9,4508.8,9.24278023]
[1758043716702,0.012,4508.9,4508.8,12.24278023]
[1758043723100,0.012,4508.9,4508.8,12.35318023]
[1758043724275,0.012,4508.9,4508.8,11.43688023]
[1758043724474,0.012,4508.9,4508.8,7.64788023]
[1758043724705,0.012,4508.9,4508.8,11.13868023]
[1758043725078,0.012,4508.9,4508.8,11.43588023]
[1758043725404,0.012,4508.9,4508.8,11.87978023]
[1758043726010,0.012,4508.9,4508.8,1.704]
[1758043726011,0.111,4508.9,4508.8,1.704]
[1758043726173,0.642,4508.9,4508.8,5.492]
[1758043726380,0.642,4508.9,4508.8,6.284]
[1758043726570,0.642,4508.9,4508.8,5.491]
[1758043727227,0.642,4508.9,4508.8,6.283]
[1758043727891,0.642,4508.9,4508.8,2.496]
[1758043728092,3.06722281,4508.9,4508.8,6.283]
[1758043728325,3.06722281,4508.9,4508.8,2.496]
[1758043728593,3.59591936,4508.9,4508.8,6.283]
[1758043728823,3.59597834,4508.9,4508.8,6.283]
[1758043729024,3.80342562,4508.9,4508.8,6.283]
[1758043729328,0.84944535,4508.9,4508.8,6.283]
[1758043729493,0.642,4508.9,4508.8,6.283]
[1758043729695,0.84944535,4508.9,4508.8,6.283]
[1758043730594,3.06728118,4508.9,4508.8,6.283]
[1758043731136,3.27473827,4508.9,4508.8,6.283]
[1758043731320,3.06728118,4508.9,4508.8,6.283]
[1758043732799,0.77184535,4508.9,4508.8,6.283]
[1758043733033,0.5644,4508.9,4508.8,6.283]
[1758043733355,0.5644,4508.9,4508.8,2.496]
[1758043733498,0.5644,4508.9,4508.8,6.283]
[1758043733827,0.012,4508.9,4508.8,11.5837475]
[1758043733999,0.012,4508.9,4508.8,6.283]
[1758043735429,3.56323113,4508.9,4508.8,6.283]
[1758043735635,3.56321379,4508.9,4508.8,6.283]
[1758043735995,1.13802061,4508.9,4508.8,6.283]
[1758043736196,3.35585644,4508.9,4508.8,6.283]
[1758043736806,3.35585644,4508.9,4508.8,2.496]
[1758043737006,3.56319648,4508.9,4508.8,5.491]
[1758043737336,3.56319648,4508.9,4508.8,6.283]
[1758043738411,3.56311805,4508.9,4508.8,6.283]
[1758043738619,3.48551805,4508.9,4508.8,6.283]
[1758043739004,3.20617213,4508.9,4508.8,6.283]
[1758043739205,0.21929626,4508.9,4508.8,6.283]
[1758043739418,2.32883583,4508.9,4508.8,6.283]
[1758043739617,3.00303209,4508.9,4508.8,6.283]
[1758043741744,2.43713209,4508.9,4508.8,6.283]
[1758043741906,0.21929626,4508.9,4508.8,2.496]
[1758043742107,0.21929626,4508.9,4508.8,6.5816]
[1758043742108,0.012,4508.9,4508.8,6.5816]
[1758043742313,0.012,4508.9,4508.8,7.5185]
[1758043742713,0.012,4508.9,4508.8,7.0279]
[1758043743048,0.012,4508.9,4508.8,6.5816]
[1758043743732,0.012,4508.9,4508.8,6.283]
[1758043743733,2.22983583,4508.9,4508.8,6.283]
[1758043743934,0.6031,4508.9,4508.8,6.283]
[1758043744314,0.6031,4508.9,4508.8,2.496]
[1758043744511,2.82093583,4508.9,4508.8,2.496]
[1758043744723,2.82093583,4508.9,4508.8,6.282]
[1758043744923,2.82093583,4508.9,4508.8,2.496]
[1758043745249,3.79251506,4508.9,4508.8,1.704]
[1758043745542,3.79251506,4508.9,4508.8,5.49]
[1758043745748,4.270153,4508.9,4508.8,5.49]
[1758043746251,4.27012724,4508.9,4508.8,6.282]
[1758043748744,4.27012724,4508.9,4508.8,2.496]
[1758043748947,4.27012724,4508.9,4508.8,6.282]
[1758043749120,3.79242372,4508.9,4508.8,6.282]
[1758043749823,3.7924379,4508.9,4508.8,6.282]
[1758043750026,0.42653473,4508.9,4508.8,6.5806]
[1758043750232,0.012,4508.9,4508.8,7.5175]
[1758043751565,0.012,4508.9,4508.8,14.74783252]
[1758043751864,0.012,4508.9,4508.8,8.99238325]
[1758043752224,0.012,4508.9,4508.8,5.31678325]
[1758043752419,0.012,4508.9,4508.8,2.905]
[1758043752671,0.012,4508.9,4508.8,7.1373]
[1758043753038,0.012,4508.9,4508.8,6.691]
[1758043753774,0.012,4508.9,4508.8,7.6279]
[1758043754170,0.012,4508.9,4508.8,22.1279]
[1758043754371,0.012,4508.9,4508.8,4.82435881]
[1758043754571,0.012,4508.9,4508.8,6.281]
[1758043754776,0.012,4508.9,4508.8,6.5796]
[1758043755695,0.012,4508.9,4508.8,6.281]
[1758043755896,2.69673583,4508.9,4508.8,2.496]
[1758043756111,3.21089919,4508.9,4508.8,6.281]
[1758043757553,0.42716336,4508.9,4508.8,6.5796]
[1758043758053,0.21953455,4508.9,4508.8,7.5165]
[1758043758429,0.42716336,4508.9,4508.8,7.5165]
[1758043758822,2.64499919,4508.9,4508.8,7.5165]
[1758043759022,0.42716336,4508.9,4508.8,7.5165]
[1758043759516,2.64499919,4508.9,4508.8,6.5796]
[1758043759716,2.64499919,4508.9,4508.8,6.281]
[1758043760051,0.42716336,4508.9,4508.8,6.281]
[1758043760205,0.21962881,4508.9,4508.8,6.5796]
[1758043760409,0.21967305,4508.9,4508.8,6.5796]
[1758043760941,0.012,4508.9,4508.8,7.5165]
[1758043761442,0.012,4508.9,4508.8,8.49004406]
[1758043762206,0.012,4508.9,4508.8,10.70792908]
[1758043762406,0.012,4508.9,4508.8,8.49004406]
[1758043763328,0.012,4508.9,4508.8,10.70792908]
[1758043763934,0.012,4508.9,4508.8,25.20792908]
[1758043766033,0.012,4508.9,4508.8,22.95694406]
[1758043766359,0.012,4508.9,4508.8,25.17482908]
[1758043766724,0.012,4508.9,4508.8,21.39082908]
[1758043767034,0.012,4508.9,4508.8,25.28522908]
[1758043768711,0.012,4508.9,4508.8,19.28334406]
[1758043768914,0.012,4508.9,4508.8,23.06634406]
[1758043769153,0.012,4508.9,4508.8,25.28422908]
[1758043771016,0.012,4508.9,4508.8,21.50122908]
[1758043771248,0.012,4508.9,4508.8,21.188]
[1758043771518,0.012,4508.9,4508.8,21.6541]
[1758043771965,0.012,4508.9,4508.8,22.1126]
[1758043772165,0.012,4508.9,4508.8,21.188]
[1758043774372,0.012,4508.9,4508.8,23.41325881]
[1758043775271,0.012,4508.9,4508.8,23.10735881]
[1758043775818,0.012,4508.9,4508.8,2.6064]
[1758043775819,0.111,4508.9,4508.8,2.6064]
[1758043776018,0.592,4508.9,4508.8,5.486]
[1758043776252,2.80983583,4508.9,4508.8,5.486]
[1758043776573,3.01732013,4508.9,4508.8,5.486]
[1758043776864,3.30242126,4508.9,4508.8,5.486]
[1758043777076,0.42698543,4508.9,4508.8,6.5839]
[1758043777358,0.012,4508.9,4508.8,6.5839]
[1758043778459,0.012,4508.9,4508.8,6.278]
[1758043778626,0.012,4508.9,4508.8,7.05]
[1758043779027,0.012,4508.9,4508.8,7.5085]
[1758043781060,0.012,4508.9,4508.8,9.72638502]
[1758043781365,0.012,4508.9,4508.8,8.13898331]
[1758043781865,0.012,4508.9,4508.8,10.35686833]
[1758043782964,0.012,4508.9,4508.8,3.43238331]
[1758043783176,0.012,4508.9,4508.8,6.60507885]
[1758043783323,0.012,4508.9,4508.8,7.5075]
[1758043784126,0.012,4508.9,4508.8,7.049]
[1758043784562,0.012,4508.9,4508.8,21.549]
[1758043785565,0.012,4508.9,4508.8,21.0829]
[1758043785762,0.012,4508.9,4508.8,6.277]
[1758043785924,0.012,4508.9,4508.8,6.5829]
[1758043787063,0.012,4508.9,4508.8,6.277]
[1758043787956,0.012,4508.9,4508.8,6.5829]
[1758043788167,0.6172,4508.9,4508.8,6.277]
[1758043788466,2.83503583,4508.9,4508.8,1.704]
[1758043788636,3.85036906,4508.9,4508.8,5.485]
[1758043789040,3.85036906,4508.9,4508.8,6.277]
[1758043789239,3.85047096,4508.9,4508.8,6.277]
[1758043789429,4.32912955,4508.9,4508.8,5.484]
[1758043790364,4.32912955,4508.9,4508.8,6.276]
[1758043791775,4.32912955,4508.9,4508.8,2.496]
[1758043791966,4.32912955,4508.9,4508.8,6.276]
[1758043791967,3.79757096,4508.9,4508.8,6.276]
[1758043792372,0.42751564,4508.9,4508.8,6.276]
[1758043792683,0.7187,4508.9,4508.8,6.276]
[1758043792869,1.13421564,4508.9,4508.8,6.276]
[1758043793184,3.14429365,4508.9,4508.8,6.276]
[1758043793345,3.35205147,4508.9,4508.8,6.276]
[1758043794251,3.90923045,4508.9,4508.8,6.276]
[1758043794945,3.90923045,4508.9,4508.8,2.496]
[1758043795164,3.90923045,4508.9,4508.8,6.276]
[1758043795365,3.90923045,4508.9,4508.8,2.496]
[1758043795571,3.96213045,4508.9,4508.8,6.276]
[1758043796065,3.96213045,4508.9,4508.8,2.496]
[1758043796267,3.96213045,4508.9,4508.8,6.276]
[1758043796476,3.96213045,4508.9,4508.8,2.496]
[1758043796650,3.96213045,4508.9,4508.8,6.276]
[1758043797782,6.96213045,4508.9,4508.8,5.484]
[1758043797950,7.44078904,4508.9,4508.8,1.704]
[1758043798152,7.44078904,4508.9,4508.8,5.484]
[1758043798771,7.88977129,4508.9,4508.8,5.484]
[1758043800066,7.88977129,4508.9,4508.8,3.78]
[1758043800268,8.55637648,4508.9,4508.8,3.78]
[1758043800466,2.21793421,4508.7,4508.6,0.001]
[1758043800692,3.71088092,4508.7,4508.6,3.78]
[1758043800890,4.31288092,4508.7,4508.6,0.001]
[1758043801063,3.71088092,4508.7,4508.6,4.8617]
[1758043801264,2.63344985,4508.7,4508.6,5.8169]
[1758043801477,2.63344985,4508.7,4508.6,4.572]
[1758043802283,2.63344985,4508.7,4508.6,5.8169]
[1758043802453,2.74384985,4508.7,4508.6,5.8169]
[1758043803288,0.52561757,4508.7,4508.6,5.8169]
[1758043803604,0.1104,4508.7,4508.6,5.8169]
[1758043804407,2.53579396,4508.7,4508.6,4.8617]
[1758043804610,3.79733332,4508.7,4508.6,0.001]
[1758043804767,3.87493332,4508.7,4508.6,2.444]
[1758043805281,3.87493332,4508.7,4508.6,3.236]
[1758043805282,3.21983332,4508.7,4508.6,3.236]
[1758043805483,2.74326922,4508.7,4508.6,3.236]
[1758043805682,3.32076922,4508.7,4508.6,3.236]
[1758043806122,3.32076922,4508.7,4508.6,3.5257]
[1758043806123,2.74326922,4508.7,4508.6,3.5257]
[1758043806407,2.74326922,4508.7,4508.6,4.4809]
[1758043807096,0.41493501,4508.7,4508.6,4.4809]
[1758043807305,2.34027203,4508.9,4508.7,0.792]
[1758043807632,0.1224,4508.9,4508.8,3.7419]
[1758043807911,0.012,4508.9,4508.8,4.38488678]
[1758043808504,0.012,4508.9,4508.8,4.36270793]
[1758043808867,0.012,4508.9,4508.8,3.7419]
[1758043809316,2.43730346,4508.9,4508.8,2.497]
[1758043809608,2.43730346,4508.9,4508.6,0.001]
[1758043809609,2.21793421,4508.7,4508.6,0.001]
[1758043809773,2.63287476,4508.7,4508.6,2.596]
[1758043809974,3.83976074,4508.7,4508.6,2.596]
[1758043810183,3.83976074,4508.7,4508.6,3.388]
[1758043810511,3.83976074,4508.7,4508.6,2.596]
[1758043810884,3.83976074,4508.7,4508.6,0.001]
[1758043811086,3.83976074,4508.7,4508.6,3.779]
[1758043811472,3.63229311,4508.7,4508.6,3.779]
[1758043811679,3.83979356,4508.7,4508.6,0.001]
[1758043812582,6.83979356,4508.7,4508.6,0.001]
[1758043812795,7.31782897,4508.7,4508.6,0.001]
[1758043812997,7.31782897,4508.7,4508.2,0.001]
[1758043812998,2.218131,4508.3,4508.2,0.001]
[1758043813178,6.37672356,4508.3,4508.2,0.001]
[1758043813379,6.85475897,4508.3,4508.2,0.001]
[1758043814005,7.52142489,4508.3,4508.2,1.0827]
[1758043814204,7.52142489,4508.3,4508.2,2.0379]
[1758043814399,7.52142489,4508.3,4508.2,1.0827]
[1758043814594,6.85475897,4508.3,4508.2,1.0827]
[1758043814821,6.85475897,4508.3,4508.2,0.793]
[1758043815341,3.85475897,4508.3,4508.2,0.793]
[1758043815544,3.47572356,4508.3,4508.2,4.571]
[1758043815686,3.95420985,4508.3,4508.2,4.571]
[1758043815887,3.37670985,4508.3,4508.2,4.571]
[1758043817346,3.37670985,4508.3,4508.2,4.8607]
[1758043818226,3.37670985,4508.3,4508.2,4.571]
[1758043819116,3.95420985,4508.3,4508.2,4.571]
[1758043819311,3.37670985,4508.3,4508.2,4.571]
[1758043819516,3.95420985,4508.3,4508.2,4.571]
[1758043819831,3.37670985,4508.3,4508.2,4.571]
[1758043820192,3.95420985,4508.3,4508.2,0.001]
[1758043820424,4.50984526,4508.3,4508.2,0.001]
[1758043820606,5.17657045,4508.3,4508.2,0.001]
[1758043821216,5.09897045,4508.3,4508.2,0.001]
[1758043821812,5.17657045,4508.3,4508.2,0.001]
[1758043822903,8.95357045,4508.3,4508.2,0.001]
[1758043823337,5.2182294,4508.1,4507.6,0.001]
[1758043823542,2.21842624,4507.7,4507.6,0.001]
[1758043823740,5.7575859,4507.7,4507.6,0.001]
[1758043823901,6.71412131,4507.7,4507.6,0.001]
[1758043824308,7.38094135,4507.7,4507.6,0.001]
[1758043825127,6.77824135,4507.7,4507.6,0.001]
[1758043825439,7.4427677,4507.7,4507.6,0.001]
[1758043826045,7.5203677,4507.7,4507.6,0.001]
[1758043826207,7.4427677,4507.7,4507.6,0.001]
[1758043826411,7.5203677,4507.7,4507.6,0.001]
[1758043827506,2.21862312,4507.3,4507.2,0.001]
[1758043828678,10.01262128,4507.3,4507.2,0.001]
[1758043828964,10.53692128,4507.3,4507.2,0.001]
[1758043829136,11.28054047,4507.3,4507.2,0.001]
[1758043829962,2.21882003,4506.9,4506.8,0.001]
[1758043830261,9.41058278,4506.9,4506.8,0.001]
[1758043830463,9.88861819,4506.9,4506.8,0.001]
[1758043830761,9.97754472,4506.9,4506.8,0.001]
[1758043830964,11.24431432,4506.9,4506.8,0.001]
[1758043831263,11.36781432,4506.9,4506.8,0.001]
[1758043831561,11.24431432,4506.9,4506.8,0.001]
[1758043832265,11.15538779,4506.9,4506.8,1.1716]
[1758043832564,7.37838779,4506.9,4506.8,1.1716]
[1758043832860,7.37838779,4506.9,4506.8,0.2868]
[1758043834362,7.37775966,4506.9,4506.8,0.2868]
[1758043836036,7.37775966,4506.9,4506.8,1.1716]
[1758043836641,7.37775966,4506.9,4506.8,0.2868]
[1758043837733,2.90413836,4506.9,4506.8,1.9636]
[1758043838047,2.2187708,4507.0,4506.9,0.792]
[1758043838356,2.42568003,4507.0,4506.9,1.9626]
[1758043838556,2.2187708,4507.0,4506.9,1.9626]
[1758043839237,2.42579605,4507.0,4506.9,1.9626]
[1758043841074,2.21843621,4507.7,4506.9,1.9626]
[1758043841075,0.4311,4508.1,4506.9,2.33167887]
[1758043841277,2.21856977,4507.5,4507.1,0.792]
[1758043841574,2.21852468,4507.5,4507.4,1.0778]
[1758043841763,2.42560271,4507.5,4507.4,1.0778]
[1758043842074,2.42560271,4507.5,4507.4,0.792]
[1758043842246,2.63200271,4507.5,4507.4,0.792]
[1758043842974,2.42560271,4507.5,4507.4,1.0778]
[1758043843481,2.42560271,4507.5,4507.4,1.9626]
[1758043843677,2.42560271,4507.5,4507.4,1.0778]
[1758043844582,2.42560271,4507.5,4507.4,1.9626]
[1758043845745,2.21852468,4507.5,4507.4,1.9626]
[1758043845950,2.42570006,4507.5,4507.4,1.9626]
[1758043846384,2.63210006,4507.5,4507.4,0.792]
[1758043846561,3.58875561,4507.5,4507.4,0.792]
[1758043847266,3.11735561,4507.5,4507.4,0.792]
[1758043847579,3.11747154,4507.5,4507.4,0.792]
[1758043847781,2.91107122,4507.5,4507.4,0.792]
[1758043847982,2.21852468,4507.5,4507.4,0.792]
[1758043848649,2.42585572,4507.5,4507.4,0.792]
[1758043848874,3.10365572,4507.5,4507.4,0.792]
[1758043849071,2.2187708,4507.0,4506.8,0.001]
[1758043849276,0.31773104,4506.9,4506.8,3.777]
[1758043849476,0.31773104,4506.9,4506.8,0.001]
[1758043849786,2.53655107,4506.9,4506.8,3.777]
[1758043849972,3.21536901,4506.9,4506.8,0.001]
[1758043850173,7.02844312,4506.9,4506.8,0.001]
[1758043850487,7.82034188,4506.9,4506.8,0.001]
[1758043850872,6.11146777,4506.9,4506.8,1.0788]
[1758043851084,3.11146777,4506.9,4506.8,1.9636]
[1758043851249,2.63356901,4506.9,4506.8,1.0788]
[1758043851648,2.83996901,4506.9,4506.8,0.793]
[1758043851852,2.63356901,4506.9,4506.8,1.0788]
[1758043852076,2.63356901,4506.9,4506.8,0.793]
[1758043852687,2.63356901,4506.9,4506.8,1.1079]
[1758043852855,2.63356901,4506.9,4506.8,2.0636]
[1758043853757,2.63356901,4506.9,4506.8,1.1079]
[1758043853958,2.63356901,4506.9,4506.8,0.793]
[1758043854255,2.63356901,4506.9,4506.8,4.8829]
[1758043854650,2.63356901,4506.9,4506.8,0.3159]
[1758043854952,2.63356901,4506.9,4506.8,0.001]
[1758043854953,4.31448671,4506.9,4506.8,0.001]
[1758043855170,4.74648671,4506.9,4506.8,0.001]
[1758043855369,4.31448671,4506.9,4506.8,0.001]
[1758043855994,3.64448671,4506.9,4506.8,0.3105]
[1758043856290,3.11146777,4506.9,4506.8,0.7793]
[1758043856653,3.11146777,4506.9,4506.8,0.3105]
[1758043857191,2.63356901,4506.9,4506.8,0.3105]
[1758043857391,2.63356901,4506.9,4506.8,0.7821]
[1758043857690,2.63356901,4506.9,4506.8,1.5713]
[1758043858077,2.63356901,4506.9,4506.8,2.0429]
[1758043858283,2.63356901,4506.9,4506.8,2.34799766]
[1758043858481,2.42635364,4506.9,4506.8,5.8179]
[1758043858715,2.21882003,4506.9,4506.8,5.8179]
[1758043859010,2.21882003,4506.9,4506.8,0.001]
[1758043859011,0.59909561,4506.9,4506.8,0.001]
[1758043859192,3.73541564,4506.9,4506.8,0.001]
[1758043859390,5.81791564,4506.9,4506.8,0.001]
[1758043859609,8.0886553,4506.9,4506.8,0.001]
[1758043859807,8.56686398,4506.9,4506.8,0.001]
[1758043860102,12.34186398,4506.9,4506.8,0.001]
[1758043860312,2.21896773,4506.6,4506.1,1e-08]
[1758043860506,15.25425846,4506.2,4506.1,1e-08]
[1758043860699,17.30598132,4506.2,4506.1,1e-08]
[1758043860869,18.22068132,4506.2,4506.1,1e-08]
[1758043861073,23.2382282,4506.2,4506.1,1e-08]
[1758043861281,2.2192632,4506.0,4505.8,0.001]
[1758043861488,16.47557464,4505.9,4505.8,0.001]
[1758043861687,17.57817464,4505.9,4505.8,0.001]
[1758043861905,12.56062776,4505.9,4505.8,0.001]
[1758043862438,13.01590527,4505.9,4505.8,0.001]
[1758043862812,13.01569034,4505.9,4505.8,0.001]
[1758043863009,6.56767932,4505.9,4505.8,0.001]
[1758043863514,7.67027932,4505.9,4505.8,0.001]
[1758043863676,7.31637932,4505.9,4505.8,0.001]
[1758043863882,6.56767932,4505.9,4505.8,0.7793]
[1758043864217,3.11240181,4505.9,4505.8,0.7793]
[1758043864409,2.63419313,4505.9,4505.8,2.0429]
[1758043864706,0.20744034,4505.9,4505.8,2.64688361]
[1758043865008,2.32966178,4506.1,4505.8,2.64688361]
[1758043865175,2.32966178,4506.1,4506.0,0.792]
[1758043865376,0.31765619,4506.1,4506.0,2.0419]
[1758043865605,0.1104,4506.1,4506.0,2.06409263]
[1758043865770,2.21866834,4507.3,4506.0,2.06409263]
[1758043865771,0.41451678,4506.5,4506.0,2.81870189]
[1758043865975,0.47820868,4507.2,4506.0,1.85610926]
[1758043865976,2.21921395,4506.1,4506.0,1.85610926]
[1758043866220,2.21921395,4506.1,4506.0,1.1015]
[1758043866426,2.21921395,4506.1,4506.0,4.8765]
[1758043866585,0.1104,4506.3,4506.0,5.8169]
[1758043866789,0.1104,4506.3,4506.0,4.8765]
[1758043866986,2.21916487,4506.2,4506.0,4.8765]
[1758043867198,2.21921395,4506.1,4506.0,4.8765]
[1758043867904,2.21921395,4506.1,4506.0,2.0419]
[1758043868223,2.4265022,4506.1,4506.0,5.8169]
[1758043868423,0.20728825,4506.1,4506.0,5.8169]
[1758043868599,2.32951654,4506.3,4506.0,5.8169]
[1758043868800,0.20728825,4506.2,4506.1,1.75459213]
[1758043869022,0.1104,4506.3,4506.2,0.792]
[1758043869329,0.31768825,4506.3,4506.2,2.0419]
[1758043869503,2.53680371,4506.3,4506.2,1.1015]
[1758043869693,2.53680371,4506.3,4506.2,1.5703]
[1758043870126,2.53680371,4506.3,4506.2,2.0419]
[1758043870290,0.31768825,4506.3,4506.2,2.0419]
[1758043870497,0.1104,4506.3,4506.2,5.8169]
[1758043870695,2.32951546,4506.3,4506.2,5.8169]
[1758043870913,2.53680371,4506.3,4506.2,5.8159]
[1758043872027,0.31768825,4506.3,4506.2,5.8159]
[1758043872191,0.1104,4506.3,4506.2,5.8159]
[1758043872592,0.1104,4506.6,4506.2,5.8159]
[1758043872801,2.74400667,4506.6,4506.4,0.792]
[1758043872993,2.42633207,4506.5,4506.4,0.792]
[1758043873524,2.42633207,4506.5,4506.4,2.0419]
[1758043874130,0.2073151,4506.5,4506.4,2.0419]
[1758043874330,2.74404938,4506.6,4506.4,2.0419]
[1758043874530,0.2073151,4506.5,4506.4,1.1015]
[1758043874694,0.41467081,4506.8,4506.6,0.792]
[1758043875027,2.21891849,4506.7,4506.6,0.792]
[1758043875211,2.42623359,4506.7,4506.6,4.7536]
[1758043875395,2.42623359,4506.7,4506.6,5.5319]
[1758043876189,2.63365081,4506.7,4506.6,5.5319]
[1758043877830,2.63365081,4506.7,4506.6,6.08509]
[1758043877831,0.2073151,4506.7,4506.6,6.08509]
[1758043877997,2.21882595,4506.9,4506.7,0.792]
[1758043878195,0.1104,4507.0,4506.8,7.54408869]
[1758043878406,0.52522252,4507.0,4506.9,4.7144]